fUST/lending_fUST_20240117
["ID","MTS","AMOUNT","RATE_DAILY","PERIOD"]
[311828856,1705441839630,-500.0,0.0003178,2]
[311828857,1705441839639,-500.0,0.0003178,2]
[311828858,1705441839648,-1328.08,0.0003178,2]
[311828859,1705441839657,-533.4106989,0.0003178,2]
[311828860,1705441839667,-500.0,0.0003178,2]
[311828861,1705441839676,-678.26,0.0003178,2]
[311828862,1705441839685,-298.91019762,0.0003178,2]
[311828863,1705441839695,-500.0,0.0003178,2]
[311828864,1705441839704,-486.66382709,0.0003178,2]
[311828865,1705441839713,-500.0,0.0003178,2]
[311828866,1705441839723,-510.94212336,0.0003178,2]
[311828867,1705441839734,-500.0,0.0003178,2]
[311828868,1705441839743,-500.0,0.0003178,2]
[311828869,1705441839754,-500.0,0.0003178,2]
[311828870,1705441839764,-470.81914919,0.0003178,2]
[311828871,1705441839775,-500.0,0.0003178,2]
[311828872,1705441839785,-500.0,0.0003178,2]
[311828873,1705441839794,-500.0,0.0003178,2]
[311828874,1705441839804,-500.0,0.0003178,2]
[311828875,1705441839814,-682.47,0.0003178,2]
[311828876,1705441839824,-571.56639859,0.0003178,2]
[311828877,1705441839834,-500.0,0.0003178,2]
[311828878,1705441839846,-500.0,0.0003178,2]
[311828879,1705441839856,-831.03,0.0003178,2]
[311828881,1705441839866,-500.0,0.0003178,2]
[311828884,1705441839876,-500.0,0.0003178,2]
[311828886,1705441839885,-500.0,0.0003178,2]
[311828888,1705441839894,-500.0,0.0003178,2]
[311828890,1705441839903,-501.22663069,0.0003178,2]
[311828892,1705441839913,-10026.40145597,0.0003178,10]
[311828894,1705441839923,-500.0,0.0003178,2]
[311828896,1705441839933,-501.97,0.0003178,2]
[311828898,1705441839942,-500.0,0.0003178,2]
[311828900,1705441839951,-500.0,0.0003178,2]
[311828902,1705441839961,-500.0,0.0003178,2]
[311828904,1705441839971,-500.0,0.0003178,2]
[311828906,1705441839980,-500.0,0.0003178,2]
[311828908,1705441839989,-500.0,0.0003178,2]
[311828910,1705441839998,-500.0,0.0003178,2]
[311828924,1705441840105,-500.31587966,0.0003178,2]
[311828925,1705441840114,-398.43963782,0.0003178,2]
[311828926,1705441840123,-500.0,0.0003178,2]
[311828927,1705441840132,-522.11357524,0.0003178,2]
[311828928,1705441840141,-500.0,0.0003178,2]
[311828929,1705441840150,-500.0,0.0003178,2]
[311828930,1705441840159,-501.87620769,0.0003178,2]
[311828931,1705441840168,-197.29705846,0.0003178,2]
[311828932,1705441840177,-500.0,0.0003178,2]
[311828933,1705441840186,-500.0,0.0003178,2]
[311828934,1705441840195,-500.0,0.0003178,2]
[311828935,1705441840204,-504.69559052,0.0003178,2]
[311828936,1705441840213,-500.0,0.0003178,2]
[311828937,1705441840223,-308.77505122,0.0003178,2]
[311828938,1705441840232,-500.0,0.0003178,2]
[311828939,1705441840241,-576.92,0.0003178,2]
[311828940,1705441840250,-500.0,0.0003178,2]
[311828941,1705441840259,-213.21012901,0.0003178,2]
[311828942,1705441840269,-500.0,0.0003178,2]
[311828943,1705441840280,-500.0,0.0003178,2]
[311828944,1705441840290,-500.0,0.0003178,2]
[311828945,1705441840299,-975.1,0.0003178,2]
[311828946,1705441840308,-500.0,0.0003178,2]
[311828947,1705441840317,-296.42767224,0.0003178,2]
[311828948,1705441840326,-521.137917,0.0003178,2]
[311828949,1705441840336,-500.0,0.0003178,2]
[311828950,1705441840345,-501.605338,0.0003178,2]
[311828951,1705441840354,-500.0,0.0003178,2]
[311828952,1705441840363,-569.11693197,0.0003178,2]
[311828953,1705441840372,-500.0,0.0003178,2]
[311828954,1705441840381,-500.0,0.0003178,2]
[311828955,1705441840391,-656.74,0.0003178,2]
[311828956,1705441840399,-656.74,0.0003178,2]
[311828957,1705441840408,-656.74,0.0003178,2]
[311828958,1705441840417,-500.0,0.0003178,2]
[311828959,1705441840427,-656.74,0.0003178,2]
[311828960,1705441840437,-656.74,0.0003178,2]
[311828961,1705441840446,-656.74,0.0003178,2]
[311828962,1705441840456,-656.74,0.0003178,2]
[311828963,1705441840466,-1197.59,0.0003178,2]
[311828964,1705441840476,-656.74,0.0003178,2]
[311828965,1705441840485,-500.0,0.0003178,2]
[311828966,1705441840494,-500.0,0.0003178,2]
[311828967,1705441840503,-500.0,0.0003178,2]
[311828968,1705441840512,-500.0,0.0003178,2]
[311828969,1705441840521,-1273.52,0.0003178,2]
[311828970,1705441840531,-500.0,0.0003178,2]
[311828971,1705441840540,-500.0,0.0003178,2]
[311828972,1705441840550,-500.0,0.0003178,2]
[311828973,1705441840559,-500.0,0.0003178,2]
[311828974,1705441840568,-500.0,0.0003178,2]
[311828975,1705441840577,-6529.07,0.0003178,2]
[311828976,1705441840586,-500.0,0.0003178,2]
[311828977,1705441840597,-465.78510027,0.0003178,2]
[311828978,1705441840606,-500.0,0.0003178,2]
[311828979,1705441840615,-500.0,0.0003178,2]
[311828980,1705441840624,-500.0,0.0003178,2]
[311828981,1705441840634,-8471.01,0.0003178,2]
[311828982,1705441840644,-500.0,0.0003178,2]
[311828983,1705441840653,-500.0,0.0003178,2]
[311828984,1705441840663,-307.17238232,0.0003178,2]
[311828985,1705441840674,-675.68,0.0003178,2]
[311828986,1705441840684,-1531.23,0.0003178,2]
[311828987,1705441840693,-2480.17,0.0003178,2]
[311828988,1705441840703,-1987.92,0.0003178,2]
[311828989,1705441840713,-500.0,0.0003178,2]
[311828990,1705441840725,-665.23,0.0003178,2]
[311828991,1705441840734,-500.0,0.0003178,2]
[311828992,1705441840744,-500.0,0.0003178,2]
[311828993,1705441840753,-500.0,0.0003178,2]
[311828994,1705441840762,-500.0,0.0003178,2]
[311828995,1705441840772,-500.0,0.0003178,2]
[311828996,1705441840782,-500.0,0.0003178,2]
[311828997,1705441840791,-500.0,0.0003178,2]
[311828998,1705441840800,-2591.26,0.0003178,2]
[311828999,1705441840810,-500.0,0.0003178,2]
[311829000,1705441840823,-500.0,0.0003178,2]
[311829001,1705441840833,-500.0,0.0003178,2]
[311829002,1705441840843,-500.0,0.0003178,2]
[311829003,1705441840856,-500.0,0.0003178,2]
[311829004,1705441840866,-500.0,0.0003178,2]
[311829005,1705441840876,-2042.25,0.0003178,2]
[311829006,1705441840886,-4391.63,0.0003178,2]
[311829007,1705441840896,-1346.29,0.0003178,2]
[311829008,1705441840906,-500.0,0.0003178,2]
[311829009,1705441840917,-517.7478727,0.0003178,2]
[311829010,1705441840927,-500.0,0.0003178,2]
[311829011,1705441840937,-500.0,0.0003178,2]
[311829012,1705441840946,-500.0,0.0003178,2]
[311829013,1705441840956,-500.0,0.0003178,2]
[311829014,1705441840966,-1783.47,0.0003178,2]
[311829015,1705441840978,-511.67588667,0.0003178,2]
[311829016,1705441840989,-500.0,0.0003178,2]
[311829017,1705441840999,-601.9,0.0003178,2]
[311829018,1705441841010,-500.0,0.0003178,2]
[311829019,1705441841020,-500.0,0.0003178,2]
[311829020,1705441841030,-14867.73,0.0003178,2]
[311829021,1705441841040,-26762.62,0.0003178,2]
[311829022,1705441841049,-500.0,0.0003178,2]
[311829023,1705441841059,-1938.02,0.0003178,2]
[311829024,1705441841069,-500.0,0.0003178,2]
[311829025,1705441841078,-500.0,0.0003178,2]
[311829027,1705441841087,-500.0,0.0003178,2]
[311829029,1705441841097,-382.82248582,0.0003178,2]
[311829030,1705441841107,-500.0,0.0003178,2]
[311829031,1705441841116,-500.0,0.0003178,2]
[311829032,1705441841125,-500.0,0.0003178,2]
[311829034,1705441841134,-500.0,0.0003178,2]
[311829035,1705441841143,-500.0,0.0003178,2]
[311829036,1705441841153,-500.0,0.0003178,2]
[311829038,1705441841162,-500.0,0.0003178,2]
[311829039,1705441841171,-502.76183864,0.0003178,2]
[311829040,1705441841180,-500.0,0.0003178,2]
[311829041,1705441841189,-500.0,0.0003178,2]
[311829042,1705441841198,-500.0,0.0003178,2]
[311829044,1705441841207,-6071.69,0.0003178,2]
[311829045,1705441841216,-500.0,0.0003178,2]
[311829047,1705441841228,-500.0,0.0003178,2]
[311829048,1705441841237,-500.0,0.0003178,2]
[311829049,1705441841248,-500.0,0.0003178,2]
[311829050,1705441841257,-500.0,0.0003178,2]
[311829051,1705441841266,-500.0,0.0003178,2]
[311829052,1705441841275,-1325.88,0.0003178,2]
[311829053,1705441841284,-500.0,0.0003178,2]
[311829054,1705441841293,-500.0,0.0003178,2]
[311829055,1705441841303,-500.0,0.0003178,2]
[311829056,1705441841312,-512.9374497,0.0003178,2]
[311829057,1705441841322,-500.0,0.0003178,2]
[311829058,1705441841331,-500.0,0.0003178,2]
[311829059,1705441841341,-500.0,0.0003178,2]
[311829060,1705441841351,-500.0,0.0003178,2]
[311829061,1705441841360,-500.0,0.0003178,2]
[311829062,1705441841370,-500.0,0.0003178,2]
[311829063,1705441841379,-501.93438759,0.0003178,2]
[311829064,1705441841391,-515.0666481,0.0003178,2]
[311829065,1705441841400,-500.0,0.0003178,2]
[311829066,1705441841409,-500.0,0.0003178,2]
[311829067,1705441841418,-500.0,0.0003178,2]
[311829068,1705441841428,-500.0,0.0003178,2]
[311829069,1705441841437,-228.9504637,0.0003178,2]
[311829070,1705441841446,-519.45523657,0.0003178,2]
[311829071,1705441841455,-500.0,0.0003178,2]
[311829072,1705441841464,-630.34,0.0003178,2]
[311829073,1705441841476,-500.0,0.0003178,2]
[311829074,1705441841486,-500.0,0.0003178,2]
[311829075,1705441841495,-500.0,0.0003178,2]
[311829076,1705441841506,-500.0,0.0003178,2]
[311829077,1705441841517,-500.0,0.0003178,2]
[311829078,1705441841525,-500.0,0.0003178,2]
[311829079,1705441841535,-5475.47,0.0003178,2]
[311829080,1705441841544,-779.71,0.0003178,2]
[311829081,1705441841553,-500.0,0.0003178,2]
[311829082,1705441841563,-500.0,0.0003178,2]
[311829083,1705441841572,-500.0,0.0003178,2]
[311829084,1705441841581,-500.0,0.0003178,2]
[311829085,1705441841591,-500.0,0.0003178,2]
[311829086,1705441841600,-1280.43,0.0003178,2]
[311829087,1705441841609,-500.0,0.0003178,2]
[311829088,1705441841618,-500.0,0.0003178,2]
[311829089,1705441841627,-500.0,0.0003178,2]
[311829090,1705441841636,-1025.86,0.0003178,2]
[311829091,1705441841645,-2267.47,0.0003178,2]
[311829092,1705441841655,-500.0,0.0003178,2]
[311829093,1705441841664,-500.0,0.0003178,2]
[311829094,1705441841673,-469.16022048,0.0003178,2]
[311829095,1705441841682,-500.0,0.0003178,2]
[311829096,1705441841691,-618.37,0.0003178,2]
[311829097,1705441841700,-500.0,0.0003178,2]
[311829098,1705441841709,-696.03,0.0003178,2]
[311829099,1705441841719,-500.0,0.0003178,2]
[311829100,1705441841729,-500.0,0.0003178,2]
[311829101,1705441841738,-200.0,0.0003178,2]
[311829102,1705441841746,-500.0,0.0003178,2]
[311829103,1705441841755,-521.1810761,0.0003178,2]
[311829104,1705441841764,-500.0,0.0003178,2]
[311829105,1705441841773,-500.0,0.0003178,2]
[311829106,1705441841782,-310.11588725,0.0003178,2]
[311829107,1705441841791,-500.0,0.0003178,2]
[311829108,1705441841801,-505.44493024,0.0003178,2]
[311829109,1705441841810,-500.0,0.0003178,2]
[311829110,1705441841822,-500.0,0.0003178,2]
[311829111,1705441841831,-500.41994784,0.0003178,2]
[311829112,1705441841841,-500.0,0.0003178,2]
[311829113,1705441841852,-500.0,0.0003178,2]
[311829114,1705441841862,-500.0,0.0003178,5]
[311829115,1705441841941,-501.56909067,0.0003178,2]
[311829116,1705441841950,-500.0,0.0003178,2]
[311829117,1705441841959,-533.04482438,0.0003178,2]
[311829118,1705441841968,-1194.11,0.0003178,2]
[311829119,1705441841980,-200.0,0.0003186,15]
[311829120,1705441841990,-5784.50348837,0.00031906,2]
[311829121,1705441841999,-1446.12587209,0.00031906,2]
[311829122,1705441842008,-376.32235726,0.00031906,2]
[311829123,1705441842018,-10090.15920986,0.00031915,4]
[311829124,1705441842027,-740.94020881,0.00031915,2]
[311829125,1705441842037,-270.45653009,0.00031915,4]
[311829126,1705441842046,-1195.92132754,0.00031915,4]
[311829127,1705441842055,-155.83792479,0.00031916,4]
[311829128,1705441842063,-656.74,0.00031916,2]
[311829129,1705441842073,-656.74,0.00031916,2]
[311829130,1705441842081,-656.74,0.00031916,2]
[311829131,1705441842090,-656.74,0.00031916,2]
[311829132,1705441842099,-656.74,0.00031916,2]
[311829133,1705441842108,-500.0,0.00031916,2]
[311829134,1705441842118,-500.0,0.00031916,2]
[311829135,1705441842127,-500.0,0.00031916,2]
[311829136,1705441842136,-500.0,0.00031916,2]
[311829137,1705441842145,-207.85288165,0.00031916,2]
[311829138,1705441842154,-500.0,0.00031916,2]
[311829139,1705441842164,-631.74505248,0.00031916,2]
[311829140,1705441842173,-500.0,0.00031916,2]
[311829141,1705441842182,-500.0,0.00031916,2]
[311829142,1705441842193,-525.4018209,0.00031916,2]
[311829143,1705441842202,-500.0,0.00031916,2]
[311829144,1705441842211,-500.0,0.00031916,2]
[311829145,1705441842221,-382.36137955,0.00031916,2]
[311829146,1705441842234,-236.83959786,0.00031916,2]
[311829147,1705441842243,-166.50962894,0.00031916,2]
[311829148,1705441842252,-500.0,0.00031916,2]
[311829149,1705441842262,-500.0,0.00031916,2]
[311829150,1705441842271,-242.41959671,0.00031916,2]
[311829151,1705441842281,-500.0,0.00031916,2]
[311829152,1705441842291,-500.0,0.00031916,2]
[311829153,1705441842300,-500.0,0.00031916,2]
[311829155,1705441842310,-500.0,0.00031916,2]
[311829156,1705441842319,-368.41979892,0.00031916,2]
[311829157,1705441842328,-252.69802098,0.00031916,2]
[311829158,1705441842338,-396.62684728,0.00031916,2]
[311829159,1705441842347,-169.98293455,0.00031916,2]
[311829160,1705441842357,-500.0,0.00031917,2]
[311829161,1705441842366,-500.0,0.00031917,2]
[311829163,1705441842375,-500.0,0.00031917,2]
[311829166,1705441842384,-500.0,0.00031917,2]
[311829168,1705441842393,-500.0,0.00031917,2]
[311829170,1705441842403,-500.0,0.00031917,2]
[311829172,1705441842411,-623.4,0.00031917,2]
[311829174,1705441842421,-647.55,0.00031917,2]
[311829175,1705441842430,-500.0,0.00031917,2]
[311829176,1705441842439,-500.0,0.00031917,2]
[311829177,1705441842448,-500.0,0.00031917,2]
[311829178,1705441842457,-500.0,0.00031917,2]
[311829179,1705441842466,-500.0,0.00031917,2]
[311829180,1705441842477,-500.0,0.00031917,2]
[311829181,1705441842486,-500.0,0.00031917,2]
[311829182,1705441842496,-500.0,0.00031917,2]
[311829183,1705441842505,-588.88125626,0.00031917,2]
[311829185,1705441842514,-500.0,0.00031917,2]
[311829189,1705441842523,-500.0,0.00031917,2]
[311829192,1705441842532,-500.0,0.00031917,2]
[311829193,1705441842541,-629.59813165,0.00031917,2]
[311829195,1705441842550,-500.0,0.00031917,2]
[311829197,1705441842560,-500.0,0.00031917,2]
[311829199,1705441842568,-500.0,0.00031917,2]
[311829200,1705441842577,-500.0,0.00031917,2]
[311829201,1705441842586,-500.0,0.00031917,2]
[311829202,1705441842596,-500.0,0.00031917,2]
[311829203,1705441842604,-500.0,0.00031917,2]
[311829204,1705441842614,-500.0,0.00031917,2]
[311829205,1705441842624,-500.0,0.00031917,2]
[311829206,1705441842633,-436.3188985,0.00031917,2]
[311829207,1705441842642,-500.0,0.00031917,2]
[311829208,1705441842652,-500.0,0.00031917,2]
[311829209,1705441842662,-500.0,0.00031917,2]
[311829210,1705441842671,-500.0,0.00031917,2]
[311829211,1705441842681,-500.0,0.00031917,2]
[311829212,1705441842690,-500.0,0.00031917,2]
[311829213,1705441842700,-500.0,0.00031917,2]
[311829214,1705441842710,-487.84353377,0.00031917,2]
[311829216,1705441842719,-506.47391452,0.00031917,2]
[311829217,1705441842731,-500.0,0.00031917,2]
[311829219,1705441842740,-366.94048723,0.00031917,2]
[311829221,1705441842749,-967.4,0.00031917,2]
[311829223,1705441842758,-186.77148725,0.00031917,2]
[311829225,1705441842768,-500.0,0.00031917,2]
[311829226,1705441842777,-150.0,0.00031917,2]
[311829228,1705441842786,-500.0,0.00031917,2]
[311829229,1705441842796,-500.0,0.00031917,2]
[311829230,1705441842805,-473.06114701,0.00031917,2]
[311829231,1705441842814,-500.0,0.00031917,2]
[311829233,1705441842825,-500.0,0.00031917,2]
[311829234,1705441842835,-500.0,0.00031917,2]
[311829235,1705441842845,-500.0,0.00031917,2]
[311829236,1705441842854,-504.48431866,0.00031917,2]
[311829237,1705441842864,-500.0,0.00031917,4]
[311829238,1705441842873,-545.97310456,0.00031917,2]
[311829239,1705441842882,-500.0,0.00031917,2]
[311829240,1705441842891,-500.0,0.00031917,2]
[311829242,1705441842900,-1328.08,0.00031917,2]
[311829243,1705441842910,-500.0,0.00031917,2]
[311829244,1705441842920,-678.26,0.00031917,2]
[311829245,1705441842930,-500.0,0.00031917,2]
[311829246,1705441842940,-500.0,0.00031917,2]
[311829247,1705441842949,-500.0,0.00031917,2]
[311829248,1705441842958,-365.80980879,0.00031917,2]
[311829249,1705441842967,-500.0,0.00031917,2]
[311829250,1705441842978,-500.0,0.00031917,2]
[311829251,1705441842987,-500.0,0.00031917,2]
[311829252,1705441842996,-682.47,0.00031917,2]
[311829253,1705441843006,-500.0,0.00031917,2]
[311829254,1705441843015,-500.0,0.00031917,2]
[311829255,1705441843024,-831.03,0.00031917,2]
[311829256,1705441843034,-500.0,0.00031917,2]
[311829257,1705441843043,-500.0,0.00031917,2]
[311829258,1705441843052,-500.0,0.00031917,2]
[311829259,1705441843061,-452.0982146,0.00031917,2]
[311829260,1705441843070,-500.0,0.00031917,2]
[311829261,1705441843080,-501.97,0.00031917,2]
[311829262,1705441843089,-500.0,0.00031917,2]
[311829263,1705441843098,-336.87464268,0.00031917,2]
[311829264,1705441843107,-500.0,0.00031917,2]
[311829265,1705441843116,-500.0,0.00031917,2]
[311829266,1705441843125,-605.78919628,0.00031917,2]
[311829267,1705441843135,-500.0,0.00031917,2]
[311829268,1705441843145,-500.0,0.00031917,2]
[311829269,1705441843154,-500.0,0.00031917,2]
[311829270,1705441843163,-500.0,0.00031917,2]
[311829271,1705441843172,-500.0,0.00031917,2]
[311829272,1705441843182,-500.0,0.00031917,2]
[311829273,1705441843191,-500.0,0.00031917,2]
[311829274,1705441843200,-576.92,0.00031917,2]
[311829275,1705441843209,-500.0,0.00031917,2]
[311829276,1705441843219,-500.0,0.00031917,2]
[311829277,1705441843230,-500.0,0.00031917,2]
[311829278,1705441843239,-975.1,0.00031917,2]
[311829279,1705441843248,-500.0,0.00031917,2]
[311829280,1705441843257,-572.74150537,0.00031917,2]
[311829281,1705441843267,-500.0,0.00031917,2]
[311829282,1705441843276,-500.0,0.00031917,2]
[311829283,1705441843285,-1197.59,0.00031917,2]
[311829284,1705441843295,-500.0,0.00031917,2]
[311829285,1705441843304,-619.09382054,0.00031917,2]
[311829286,1705441843313,-500.0,0.00031917,2]
[311829287,1705441843322,-500.0,0.00031917,2]
[311829288,1705441843331,-1273.52,0.00031917,2]
[311829289,1705441843341,-506.7967264,0.00031917,2]
[311829290,1705441843350,-501.0625085,0.00031917,2]
[311829291,1705441843359,-500.0,0.00031917,2]
[311829292,1705441843368,-218.13816662,0.00031917,2]
[311829293,1705441843377,-500.0,0.00031917,2]
[311829294,1705441843386,-6529.07,0.00031917,2]
[311829295,1705441843395,-500.0,0.00031917,2]
[311829296,1705441843404,-500.0,0.00031917,2]
[311829297,1705441843413,-500.0,0.00031917,2]
[311829298,1705441843422,-500.0,0.00031917,2]
[311829299,1705441843431,-8471.01,0.00031917,2]
[311829300,1705441843440,-500.0,0.00031917,2]
[311829301,1705441843450,-675.68,0.00031917,2]
[311829302,1705441843458,-1531.23,0.00031917,2]
[311829303,1705441843468,-2480.17,0.00031917,2]
[311829304,1705441843478,-1987.92,0.00031917,2]
[311829305,1705441843487,-500.0,0.00031917,2]
[311829306,1705441843496,-665.23,0.00031917,2]
[311829307,1705441843505,-386.11503566,0.00031917,2]
[311829308,1705441843514,-194.4209578,0.00031917,2]
[311829309,1705441843523,-500.0,0.00031917,2]
[311829310,1705441843598,-500.0,0.00031917,2]
[311829311,1705441843608,-500.0,0.00031917,2]
[311829312,1705441843617,-500.0,0.00031917,2]
[311829313,1705441843626,-2591.26,0.00031917,2]
[311829314,1705441843635,-500.0,0.00031917,2]
[311829315,1705441843644,-500.0,0.00031917,2]
[311829316,1705441843653,-500.0,0.00031917,2]
[311829317,1705441843662,-500.0,0.00031917,2]
[311829318,1705441843671,-500.0,0.00031917,2]
[311829319,1705441843680,-2042.25,0.00031917,2]
[311829320,1705441843689,-500.0,0.00031917,2]
[311829321,1705441843698,-4391.63,0.00031917,2]
[311829322,1705441843707,-1346.29,0.00031917,2]
[311829323,1705441843717,-500.0,0.00031917,2]
[311829324,1705441843726,-500.0,0.00031917,2]
[311829325,1705441843735,-341.42797403,0.00031917,2]
[311829326,1705441843745,-1783.47,0.00031917,2]
[311829327,1705441843754,-500.0,0.00031917,2]
[311829328,1705441843763,-601.9,0.00031917,2]
[311829329,1705441843771,-500.0,0.00031917,2]
[311829330,1705441843781,-500.0,0.00031917,2]
[311829331,1705441843790,-14867.73,0.00031917,2]
[311829332,1705441843799,-26762.62,0.00031917,2]
[311829333,1705441843808,-500.0,0.00031917,2]
[311829334,1705441843818,-1938.02,0.00031917,2]
[311829335,1705441843827,-500.0,0.00031917,2]
[311829336,1705441843835,-500.0,0.00031917,2]
[311829337,1705441843847,-500.0,0.00031917,2]
[311829338,1705441843856,-500.0,0.00031917,2]
[311829339,1705441843866,-500.0,0.00031917,2]
[311829340,1705441843875,-500.0,0.00031917,2]
[311829341,1705441843884,-500.0,0.00031917,2]
[311829342,1705441843894,-500.0,0.00031917,2]
[311829343,1705441843903,-6071.69,0.00031917,2]
[311829344,1705441843913,-500.0,0.00031917,2]
[311829345,1705441843923,-500.55842521,0.00031917,2]
[311829346,1705441843933,-500.0,0.00031917,2]
[311829347,1705441843943,-1325.88,0.00031917,2]
[311829348,1705441843952,-500.0,0.00031917,2]
[311829349,1705441843962,-500.0,0.00031917,2]
[311829350,1705441843972,-500.0,0.00031917,2]
[311829351,1705441843981,-500.0,0.00031917,2]
[311829352,1705441843991,-500.0,0.00031917,2]
[311829353,1705441844000,-500.0,0.00031917,2]
[311829354,1705441844009,-500.0,0.00031917,2]
[311829355,1705441844019,-500.0,0.00031917,2]
[311829356,1705441844028,-500.0,0.00031917,2]
[311829357,1705441844037,-609.14910284,0.00031917,2]
[311829358,1705441844046,-500.0,0.00031917,2]
[311829359,1705441844056,-500.0,0.00031917,2]
[311829360,1705441844065,-502.45515726,0.00031917,2]
[311829361,1705441844074,-500.0,0.00031917,2]
[311829362,1705441844083,-630.34,0.00031917,2]
[311829363,1705441844092,-500.0,0.00031917,2]
[311829364,1705441844102,-500.0,0.00031917,2]
[311829365,1705441844111,-500.0,0.00031917,2]
[311829366,1705441844121,-500.0,0.00031917,2]
[311829367,1705441844131,-500.0,0.00031917,2]
[311829368,1705441844141,-449.7559411,0.00031917,2]
[311829369,1705441844151,-5475.47,0.00031917,2]
[311829370,1705441844161,-779.71,0.00031917,2]
[311829371,1705441844171,-500.0,0.00031917,2]
[311829372,1705441844181,-500.0,0.00031917,2]
[311829373,1705441844191,-500.0,0.00031917,2]
[311829374,1705441844202,-500.0,0.00031917,2]
[311829375,1705441844213,-500.0,0.00031917,2]
[311829376,1705441844226,-1280.43,0.00031917,2]
[311829377,1705441844236,-500.0,0.00031917,2]
[311829378,1705441844246,-500.0,0.00031917,2]
[311829379,1705441844255,-1025.86,0.00031917,2]
[311829380,1705441844266,-500.0,0.00031917,2]
[311829381,1705441844275,-2267.47,0.00031917,2]
[311829382,1705441844285,-500.0,0.00031917,2]
[311829383,1705441844294,-500.0,0.00031917,2]
[311829384,1705441844304,-618.37,0.00031917,2]
[311829385,1705441844313,-696.03,0.00031917,2]
[311829386,1705441844322,-500.0,0.00031917,2]
[311829387,1705441844331,-500.0,0.00031917,2]
[311829388,1705441844340,-201.92967821,0.00031917,2]
[311829389,1705441844350,-500.0,0.00031917,2]
[311829390,1705441844359,-500.0,0.00031917,2]
[311829391,1705441844368,-500.0,0.00031917,2]
[311829392,1705441844377,-500.0,0.00031917,2]
[311829393,1705441844387,-500.0,0.00031917,2]
[311829394,1705441844396,-500.0,0.00031917,5]
[311829395,1705441844405,-500.0,0.00031917,2]
[311829396,1705441844414,-1194.11,0.00031917,2]
[311829397,1705441844424,-656.74,0.00031999,2]
[311829398,1705441844433,-656.74,0.00031999,2]
[311829399,1705441844442,-656.74,0.00031999,2]
[311829400,1705441844452,-656.74,0.00031999,2]
[311829401,1705441844461,-2000.0,0.00032,2]
[311829402,1705441844470,-331.96497418,0.00032009,4]
[311829403,1705441844482,-460.7502742,0.00032009,2]
[311829404,1705441844492,-2823.15062971,0.00032009,4]
[311829405,1705441844502,-752.85707652,0.00032009,4]
[311829406,1705441844512,-1394.10097555,0.00032009,4]
[311829407,1705441844522,-372.66563105,0.0003201,2]
[311829408,1705441844531,-282.89804114,0.0003201,3]
[311829409,1705441844546,-154.9690062,0.0003201,2]
[311829410,1705441844555,-2000.0,0.0003201,2]
[311829411,1705441844564,-2000.0,0.0003202,2]
[311829412,1705441844574,-2000.0,0.0003203,2]
[311829413,1705441844583,-2000.0,0.0003204,2]
[311829414,1705441844592,-2000.0,0.0003205,2]
[311829415,1705441844601,-317.67539315,0.00032051,4]